[Event "Kupreichik Memorial Open 2018"]
[Site "Minsk"]
[Date "2018.06.23"]
[Round "11"]
[White "Bernotas, Arturs"]
[Black "Cherepov, Alexej"]
[Result "1-0"]
[ECO "C45"]
[WhiteElo "2407"]
[BlackElo "2175"]
[Annotator "NA"]
[PlyCount "65"]
[EventDate "2018.06.21"]
[EventCountry "BLR"]
[SourceTitle "playchess.com"]
[Source "ChessBase"]
[SourceQuality "1"]
[TimeControl "900+10"]

1. e4 {[%emt 0:02:53]} e5 {[%emt 0:00:07]} 2. Nf3 {[%emt 0:00:04]} Nc6 {[%emt 0:00:10]} 3. d4 {[%emt 0:00:03]} exd4 {[%emt 0:00:07]} 4. Nxd4 {[%emt 0:00:04]} Bc5 {[%emt 0:00:16]} 5. Be3 {[%emt 0:00:05]} Qf6 {[%emt 0:00:01]} 6. c3 {[%emt 0:00:03]} Nge7 {[%emt 0:00:02]} 7. g3 {[%emt 0:00:03]} O-O {[%emt 0:01:12]} 8. Bg2 {[%emt 0:00:04]} Ne5 {[%emt 0:00:55]} 9. O-O {[%emt 0:00:22]} d6 {[%emt 0:00:12]} 10. h3 {[%emt 0:00:23]} Nc4 {[%emt 0:00:50]} 11. Bc1 {[%emt 0:00:47]} Nc6 {[%emt 0:01:24]} 12. Qe2 {[%emt 0:00:21]} N4e5 {[%emt 0:01:40]} 13. Be3 {[%emt 0:00:18]} Bb6 {[%emt 0:00:19]} 14. Nd2 {[%emt 0:00:22]} Bd7 {[%emt 0:00:10]} 15. a4 {[%emt 0:01:36]} Rfe8 {[%emt 0:02:32]} 16. f4 {[%emt 0:01:01]} Ng6 {[%emt 0:00:15]} 17. Qf2 {[%emt 0:00:05]} Nxd4 {[%emt 0:01:46]} 18. cxd4 {[%emt 0:00:14]} c6 {[%emt 0:00:00]} 19. f5 {[%emt 0:01:03]} Nf8 {[%emt 0:00:21]} 20. g4 {[%emt 0:00:37]} h6 {[%emt 0:00:03]} 21. h4 {[%emt 0:00:20]} Nh7 {[%emt 0:01:54]} 22. Kh2 {[%emt 0:03:26]} Qe7 {[%emt 0:01:17]} 23. a5 {[%emt 0:00:58]} Bc7 {[%emt 0:00:07]} 24. Bf4 {[%emt 0:00:05]} b6 {[%emt 0:00:42]} 25. a6 {[%emt 0:00:10]} b5 {[%emt 0:00:06]} 26. Rae1 {[%emt 0:00:36]} f6 {[%emt 0:00:30]} 27. Nf3 {[%emt 0:00:14]} Bc8 {[%emt 0:00:19]} 28. e5 {[%emt 0:00:27]} dxe5 {[%emt 0:00:17]} 29. dxe5 {[%emt 0:00:03]} Bxa6 {[%emt 0:00:18]} 30. Kh3 {[%emt 0:00:17]} Bb6 {[%emt 0:00:45]} 31. Qg3 {[%emt 0:00:04]} fxe5 {[%emt 0:00:18]} 32. Nxe5 {[%emt 0:00:12]} Bb7 {[%emt 0:00:40]} 33. Qb3+ {[%emt 0:00:06]} 1-0

[Event "Kupreichik Memorial Open 2018"]
[Site "Minsk"]
[Date "2018.06.23"]
[Round "11"]
[White "Kalugin, Sergey G"]
[Black "Kalinin, Dmitry"]
[Result "1/2-1/2"]
[ECO "C00"]
[WhiteElo "2334"]
[BlackElo "1995"]
[Annotator "NA"]
[PlyCount "141"]
[EventDate "2018.06.21"]
[EventCountry "BLR"]
[SourceTitle "playchess.com"]
[Source "ChessBase"]
[SourceQuality "1"]
[TimeControl "900+10"]

1. e4 {[%emt 0:00:00]} e6 {[%emt 0:00:03]} 2. d3 {[%emt 0:00:00]} d5 {[%emt 0:00:23]} 3. Nd2 {[%emt 0:00:00]} Nf6 {[%emt 0:00:23]} 4. Ngf3 {[%emt 0:00:00]} Be7 {[%emt 0:00:21]} 5. g3 {[%emt 0:00:01]} O-O {[%emt 0:00:53]} 6. Bg2 {[%emt 0:00:01]} c5 {[%emt 0:00:08]} 7. O-O {[%emt 0:00:02]} Nc6 {[%emt 0:00:05]} 8. e5 {[%emt 0:00:27]} Nd7 {[%emt 0:00:12]} 9. Re1 {[%emt 0:00:01]} b5 {[%emt 0:00:17]} 10. Nf1 {[%emt 0:00:07]} Bb7 {[%emt 0:00:59]} 11. h4 {[%emt 0:00:05]} Qc7 {[%emt 0:00:13]} 12. Bf4 {[%emt 0:00:02]} Nd4 {[%emt 0:00:13]} 13. Ng5 {[%emt 0:03:35]} h6 {[%emt 0:00:53]} 14. Nh3 {[%emt 0:00:01]} Rfc8 {[%emt 0:00:46]} 15. Nh2 {[%emt 0:00:26]} Nf5 {[%emt 0:01:15]} 16. Ng4 {[%emt 0:01:09]} d4 {[%emt 0:01:47]} 17. Be4 {[%emt 0:00:04]} Qb6 {[%emt 0:03:08]} 18. Qd2 {[%emt 0:02:03]} Bf8 {[%emt 0:01:46]} 19. Nh2 {[%emt 0:01:31]} c4 {[%emt 0:00:16]} 20. Nf3 {[%emt 0:00:22]} c3 {[%emt 0:00:30]} 21. bxc3 {[%emt 0:00:10]} dxc3 {[%emt 0:00:02]} 22. Qe2 {[%emt 0:00:16]} Nc5 {[%emt 0:00:08]} 23. Bxb7 {[%emt 0:00:18]} Nxb7 {[%emt 0:00:24]} 24. g4 {[%emt 0:00:36]} Nd4 {[%emt 0:00:17]} 25. Nxd4 {[%emt 0:00:02]} Qxd4 {[%emt 0:00:02]} 26. Qf3 {[%emt 0:00:06]} Qd5 {[%emt 0:00:55]} 27. Qg3 {[%emt 0:00:37]} g6 {[%emt 0:00:20]} 28. Qe3 {[%emt 0:01:49]} Kh7 {[%emt 0:00:08]} 29. h5 {[%emt 0:01:19]} gxh5 {[%emt 0:00:17]} 30. gxh5 {[%emt 0:00:37]} Bc5 {[%emt 0:00:01]} 31. Qe4+ {[%emt 0:00:43]} Qxe4 {[%emt 0:00:10]} 32. Rxe4 {[%emt 0:00:02]} Rg8+ {[%emt 0:00:12]} 33. Kh2 {[%emt 0:00:29]} Nd8 {[%emt 0:00:31]} 34. Be3 {[%emt 0:00:46]} Bxe3 {[%emt 0:00:11]} 35. fxe3 {[%emt 0:00:03]} Nc6 {[%emt 0:00:08]} 36. Rb1 {[%emt 0:00:14]} a6 {[%emt 0:00:07]} 37. d4 {[%emt 0:00:09]} Rg7 {[%emt 0:00:06]} 38. Rf4 {[%emt 0:00:08]} Rag8 {[%emt 0:00:32]} 39. Rf2 {[%emt 0:00:01]} Ne7 {[%emt 0:00:24]} 40. Rb3 {[%emt 0:00:18]} Rc8 {[%emt 0:00:07]} 41. Nf4 {[%emt 0:00:19]} Nf5 {[%emt 0:00:14]} 42. Rf3 {[%emt 0:00:06]} Rg4 {[%emt 0:00:23]} 43. d5 {[%emt 0:00:34]} Nxe3 {[%emt 0:00:27]} 44. dxe6 {[%emt 0:00:01]} fxe6 {[%emt 0:00:38]} 45. Nxe6 {[%emt 0:00:02]} Rg2+ {[%emt 0:00:23]} 46. Kh3 {[%emt 0:00:08]} Re2 {[%emt 0:00:04]} 47. Nf4 {[%emt 0:00:14]} Re1 {[%emt 0:00:17]} 48. Ng6 {[%emt 0:00:02]} Rc4 {[%emt 0:00:28]} 49. Kg3 {[%emt 0:00:16]} Nxc2 {[%emt 0:00:38]} 50. Rbxc3 {[%emt 0:00:02]} Nd4 {[%emt 0:00:08]} 51. Rxc4 {[%emt 0:00:20]} bxc4 {[%emt 0:00:01]} 52. Rf7+ {[%emt 0:00:01]} Kg8 {[%emt 0:00:01]} 53. Rc7 {[%emt 0:00:02]} c3 {[%emt 0:00:05]} 54. Rxc3 {[%emt 0:01:22]} Ne2+ {[%emt 0:00:18]} 55. Kf2 {[%emt 0:00:01]} Nxc3 {[%emt 0:00:01]} 56. Kxe1 {[%emt 0:00:01]} Nxa2 {[%emt 0:00:01]} 57. Kd2 {[%emt 0:00:41]} Kf7 {[%emt 0:00:22]} 58. Kd3 {[%emt 0:00:04]} a5 {[%emt 0:00:20]} 59. Kc4 {[%emt 0:00:08]} Ke6 {[%emt 0:00:05]} 60. Kb5 {[%emt 0:00:19]} Nb4 {[%emt 0:00:04]} 61. Kc5 {[%emt 0:00:31]} Nc6 {[%emt 0:00:26]} 62. Kxc6 {[%emt 0:00:34]} a4 {[%emt 0:00:01]} 63. Nf4+ {[%emt 0:00:12]} Kxe5 {[%emt 0:00:02]} 64. Nd3+ {[%emt 0:00:00]} Kf5 {[%emt 0:00:25]} 65. Kd5 {[%emt 0:00:09]} Kg5 {[%emt 0:00:01]} 66. Ke4 {[%emt 0:00:01]} Kxh5 {[%emt 0:00:02]} 67. Kf5 {[%emt 0:00:01]} Kh4 {[%emt 0:00:02]} 68. Kf4 {[%emt 0:00:01]} h5 {[%emt 0:00:03]} 69. Nb4 {[%emt 0:00:03]} Kh3 {[%emt 0:00:04]} 70. Kf3 {[%emt 0:00:01]} h4 {[%emt 0:00:01]} 71. Na2 1/2-1/2

[Event "Kupreichik Memorial Open 2018"]
[Site "Minsk"]
[Date "2018.06.23"]
[Round "11"]
[White "Terletsky, Oleg"]
[Black "Kuznetsov, Mikhail V"]
[Result "0-1"]
[ECO "B29"]
[WhiteElo "2257"]
[BlackElo "2207"]
[Annotator "NA"]
[PlyCount "134"]
[EventDate "2018.06.21"]
[EventCountry "BLR"]
[SourceTitle "playchess.com"]
[Source "ChessBase"]
[SourceQuality "1"]
[TimeControl "900+10"]

1. e4 {[%emt 0:00:00]} c5 {[%emt 0:00:01]} 2. Nf3 {[%emt 0:00:00]} Nf6 {[%emt 0:00:01]} 3. Nc3 {[%emt 0:00:33]} d5 {[%emt 0:00:01]} 4. exd5 {[%emt 0:00:32]} Nxd5 {[%emt 0:00:02]} 5. Bb5+ {[%emt 0:00:05]} Bd7 {[%emt 0:00:02]} 6. Ne5 {[%emt 0:03:07]} Nf6 {[%emt 0:00:02]} 7. Qf3 {[%emt 0:03:08]} Qc8 {[%emt 0:00:02]} 8. Nxd7 {[%emt 0:01:19]} Nbxd7 {[%emt 0:00:06]} 9. Nd5 {[%emt 0:01:05]} Nxd5 {[%emt 0:01:12]} 10. Qxd5 {[%emt 0:00:02]} e6 {[%emt 0:00:23]} 11. Qg5 {[%emt 0:00:16]} a6 {[%emt 0:00:42]} 12. Be2 {[%emt 0:00:02]} h6 {[%emt 0:01:27]} 13. Qg3 {[%emt 0:00:16]} Qb8 {[%emt 0:00:46]} 14. d3 {[%emt 0:00:25]} Qxg3 {[%emt 0:00:17]} 15. hxg3 {[%emt 0:00:02]} Be7 {[%emt 0:00:28]} 16. Be3 {[%emt 0:00:29]} O-O-O {[%emt 0:00:10]} 17. O-O-O {[%emt 0:00:06]} Nf6 {[%emt 0:00:56]} 18. c4 {[%emt 0:00:38]} e5 {[%emt 0:02:48]} 19. g4 {[%emt 0:00:38]} Nd7 {[%emt 0:01:17]} 20. Rh5 {[%emt 0:00:23]} Bg5 {[%emt 0:01:59]} 21. Bxg5 {[%emt 0:01:33]} hxg5 {[%emt 0:00:02]} 22. Rdh1 {[%emt 0:01:22]} Rxh5 {[%emt 0:00:15]} 23. Rxh5 {[%emt 0:00:03]} g6 {[%emt 0:00:07]} 24. Rh7 {[%emt 0:00:31]} Rf8 {[%emt 0:00:07]} 25. Bf3 {[%emt 0:00:22]} Nf6 {[%emt 0:00:23]} 26. Rh1 {[%emt 0:00:28]} Kc7 {[%emt 0:00:16]} 27. Kc2 {[%emt 0:00:04]} b6 {[%emt 0:00:08]} 28. a3 {[%emt 0:00:03]} a5 {[%emt 0:00:51]} 29. b3 {[%emt 0:00:42]} Re8 {[%emt 0:00:20]} 30. Re1 {[%emt 0:00:01]} Kd6 {[%emt 0:00:09]} 31. Kc3 {[%emt 0:00:02]} Rh8 {[%emt 0:01:15]} 32. b4 {[%emt 0:00:01]} axb4+ {[%emt 0:00:45]} 33. axb4 {[%emt 0:00:02]} cxb4+ {[%emt 0:00:06]} 34. Kxb4 {[%emt 0:00:01]} Rh4 {[%emt 0:00:34]} 35. Kb5 {[%emt 0:00:04]} Nxg4 {[%emt 0:00:45]} 36. Kxb6 {[%emt 0:00:15]} Nxf2 {[%emt 0:00:47]} 37. c5+ {[%emt 0:00:19]} Ke6 {[%emt 0:00:06]} 38. Rb1 {[%emt 0:01:47]} Nxd3 {[%emt 0:00:46]} 39. c6 {[%emt 0:00:02]} Rc4 {[%emt 0:00:50]} 40. c7 {[%emt 0:00:12]} Kd7 {[%emt 0:00:16]} 41. Rd1 {[%emt 0:00:32]} Rb4+ {[%emt 0:00:03]} 42. Ka5 {[%emt 0:00:01]} Rd4 {[%emt 0:00:12]} 43. Kb6 {[%emt 0:00:12]} e4 {[%emt 0:00:17]} 44. Bxe4 {[%emt 0:00:04]} Rb4+ {[%emt 0:00:02]} 45. Ka5 {[%emt 0:00:12]} Rxe4 {[%emt 0:00:03]} 46. Rxd3+ {[%emt 0:00:06]} Kxc7 {[%emt 0:00:00]} 47. Kb5 {[%emt 0:00:15]} f5 {[%emt 0:00:13]} 48. Kc5 {[%emt 0:00:03]} Re2 {[%emt 0:00:09]} 49. g3 {[%emt 0:00:04]} Re5+ {[%emt 0:00:22]} 50. Kd4 {[%emt 0:00:06]} Kd6 {[%emt 0:00:05]} 51. Ra3 {[%emt 0:00:01]} Re4+ {[%emt 0:00:10]} 52. Kd3 {[%emt 0:00:02]} Ke7 {[%emt 0:00:08]} 53. Kd2 {[%emt 0:00:17]} Kf6 {[%emt 0:00:11]} 54. Ra6+ {[%emt 0:00:09]} Kg7 {[%emt 0:00:03]} 55. Ra8 {[%emt 0:00:03]} Re7 {[%emt 0:00:29]} 56. Ra4 {[%emt 0:00:08]} g4 {[%emt 0:00:18]} 57. Ra8 {[%emt 0:00:07]} Kf6 {[%emt 0:00:04]} 58. Rf8+ {[%emt 0:00:09]} Kg5 {[%emt 0:00:01]} 59. Ra8 {[%emt 0:00:07]} Re5 {[%emt 0:00:04]} 60. Rf8 {[%emt 0:00:06]} Re4 {[%emt 0:00:05]} 61. Rf7 {[%emt 0:00:06]} f4 {[%emt 0:00:08]} 62. gxf4+ {[%emt 0:00:04]} Rxf4 {[%emt 0:00:01]} 63. Rh7 {[%emt 0:00:06]} g3 {[%emt 0:00:02]} 64. Rh1 {[%emt 0:00:03]} Kg4 {[%emt 0:00:02]} 65. Ke3 {[%emt 0:00:02]} Rf8 {[%emt 0:00:02]} 66. Rg1 {[%emt 0:00:01]} Re8+ {[%emt 0:00:07]} 67. Kd4 {[%emt 0:00:04]} Kf3 {[%emt 0:00:03]} 0-1

[Event "Kupreichik Memorial Open 2018"]
[Site "Minsk"]
[Date "2018.06.23"]
[Round "11"]
[White "Rakhmangulova, Anastasiya"]
[Black "Runets, Ivan"]
[Result "1-0"]
[ECO "B33"]
[WhiteElo "2244"]
[BlackElo "2010"]
[Annotator "NA"]
[PlyCount "69"]
[EventDate "2018.06.21"]
[EventCountry "BLR"]
[SourceTitle "playchess.com"]
[Source "ChessBase"]
[SourceQuality "1"]
[TimeControl "900+10"]

1. e4 {[%emt 0:00:00]} c5 {[%emt 0:00:01]} 2. Nf3 {[%emt 0:00:00]} e6 {[%emt 0:00:01]} 3. d4 {[%emt 0:00:00]} cxd4 {[%emt 0:00:01]} 4. Nxd4 {[%emt 0:00:00]} Nf6 {[%emt 0:00:01]} 5. Nc3 {[%emt 0:00:00]} Nc6 {[%emt 0:00:01]} 6. Ndb5 {[%emt 0:00:00]} d6 {[%emt 0:00:01]} 7. Bf4 {[%emt 0:00:00]} e5 {[%emt 0:00:01]} 8. Bg5 {[%emt 0:00:00]} a6 {[%emt 0:00:02]} 9. Na3 {[%emt 0:00:04]} b5 {[%emt 0:00:01]} 10. Bxf6 {[%emt 0:00:04]} gxf6 {[%emt 0:00:02]} 11. Nd5 {[%emt 0:00:01]} Bg7 {[%emt 0:02:32]} 12. Bd3 {[%emt 0:01:45]} Be6 {[%emt 0:02:11]} 13. O-O {[%emt 0:00:32]} f5 {[%emt 0:00:26]} 14. c4 {[%emt 0:01:21]} bxc4 {[%emt 0:02:29]} 15. Nxc4 {[%emt 0:00:02]} O-O {[%emt 0:00:19]} 16. Ncb6 {[%emt 0:00:46]} fxe4 {[%emt 0:01:03]} 17. Bxe4 {[%emt 0:01:01]} Rb8 {[%emt 0:00:27]} 18. Bxh7+ {[%emt 0:00:32]} Kxh7 {[%emt 0:01:21]} 19. Qc2+ {[%emt 0:00:00]} f5 {[%emt 0:00:47]} 20. Qxc6 {[%emt 0:00:02]} Bf7 {[%emt 0:02:31]} 21. Nd7 {[%emt 0:02:17]} Rc8 22. Qxd6 Bxd5 {[%emt 0:04:09]} 23. Qxd5 {[%emt 0:00:47]} Re8 {[%emt 0:00:19]} 24. Rad1 {[%emt 0:00:53]} Qe7 {[%emt 0:00:09]} 25. Rd3 {[%emt 0:02:33]} Rcd8 {[%emt 0:00:13]} 26. Rh3+ {[%emt 0:00:17]} Kg6 {[%emt 0:00:08]} 27. Rd1 {[%emt 0:00:30]} Rh8 {[%emt 0:00:12]} 28. Qc6+ {[%emt 0:04:36]} Kf7 {[%emt 0:00:07]} 29. Rxh8 {[%emt 0:00:02]} Rxh8 {[%emt 0:00:13]} 30. Nc5 {[%emt 0:00:19]} Qf6 {[%emt 0:00:11]} 31. Rd7+ {[%emt 0:01:15]} Kg8 {[%emt 0:00:02]} 32. Ne6 {[%emt 0:00:17]} Rh6 {[%emt 0:00:18]} 33. Qc8+ {[%emt 0:00:06]} Bf8 {[%emt 0:00:06]} 34. Nxf8 {[%emt 0:00:04]} Qc6 {[%emt 0:00:04]} 35. Rc7 {[%emt 0:00:20]} 1-0

[Event "Kupreichik Memorial Open 2018"]
[Site "Minsk"]
[Date "2018.06.23"]
[Round "11"]
[White "Sirotkina, Nina"]
[Black "Zhukova, Natalia"]
[Result "0-1"]
[ECO "A45"]
[WhiteElo "2116"]
[BlackElo "2356"]
[Annotator "NA"]
[PlyCount "52"]
[EventDate "2018.06.21"]
[EventCountry "BLR"]
[SourceTitle "playchess.com"]
[Source "ChessBase"]
[SourceQuality "1"]
[TimeControl "900+10"]

1. d4 {[%emt 0:00:00]} Nf6 {[%emt 0:00:02]} 2. Bf4 {[%emt 0:00:00]} d5 {[%emt 0:00:06]} 3. e3 {[%emt 0:00:03]} e6 {[%emt 0:00:04]} 4. Nf3 {[%emt 0:00:10]} c5 {[%emt 0:00:03]} 5. c3 {[%emt 0:00:05]} Nc6 {[%emt 0:00:02]} 6. Nbd2 {[%emt 0:00:39]} Be7 {[%emt 0:00:08]} 7. Bd3 {[%emt 0:00:20]} Nh5 {[%emt 0:00:05]} 8. Bg3 {[%emt 0:00:39]} g6 {[%emt 0:00:58]} 9. O-O {[%emt 0:03:24]} O-O {[%emt 0:00:43]} 10. Qe2 {[%emt 0:00:20]} Nxg3 {[%emt 0:00:15]} 11. hxg3 {[%emt 0:00:01]} Qc7 {[%emt 0:01:25]} 12. dxc5 {[%emt 0:01:25]} Bxc5 {[%emt 0:00:02]} 13. e4 {[%emt 0:00:03]} Qxg3 {[%emt 0:01:04]} 14. Nb3 {[%emt 0:00:58]} Bb6 {[%emt 0:00:12]} 15. Nbd4 {[%emt 0:01:24]} Qf4 {[%emt 0:00:34]} 16. Rfd1 {[%emt 0:01:42]} Bd7 {[%emt 0:02:38]} 17. e5 {[%emt 0:01:23]} f6 {[%emt 0:00:40]} 18. exf6 {[%emt 0:00:59]} Rxf6 {[%emt 0:00:07]} 19. Bb5 {[%emt 0:00:49]} Bc7 {[%emt 0:02:00]} 20. g3 {[%emt 0:02:09]} Qg4 {[%emt 0:00:25]} 21. Nh2 {[%emt 0:00:45]} Qxe2 {[%emt 0:00:31]} 22. Nxe2 {[%emt 0:00:02]} h5 {[%emt 0:00:56]} 23. Rd2 {[%emt 0:00:39]} Bb6 {[%emt 0:00:06]} 24. Nd4 {[%emt 0:00:22]} Raf8 {[%emt 0:00:21]} 25. Rf1 {[%emt 0:00:26]} e5 {[%emt 0:00:53]} 26. Nb3 {[%emt 0:00:07]} Bh3 {[%emt 0:00:06]} 0-1

[Event "Kupreichik Memorial Open 2018"]
[Site "Minsk"]
[Date "2018.06.23"]
[Round "11"]
[White "Shaban, Alena"]
[Black "Stsepkina, Yauheniya"]
[Result "0-1"]
[ECO "A05"]
[WhiteElo "2027"]
[BlackElo "1591"]
[Annotator "NA"]
[PlyCount "96"]
[EventDate "2018.06.21"]
[EventCountry "BLR"]
[SourceTitle "playchess.com"]
[Source "ChessBase"]
[SourceQuality "1"]
[TimeControl "900+10"]

1. Nf3 {[%emt 0:00:00]} Nf6 {[%emt 0:00:01]} 2. g3 {[%emt 0:00:00]} g6 {[%emt 0:00:01]} 3. Bg2 {[%emt 0:00:00]} Bg7 {[%emt 0:00:01]} 4. O-O {[%emt 0:00:00]} O-O {[%emt 0:00:01]} 5. d3 {[%emt 0:00:00]} d5 {[%emt 0:00:02]} 6. Nbd2 {[%emt 0:00:00]} c5 {[%emt 0:00:03]} 7. e4 {[%emt 0:00:00]} Nc6 {[%emt 0:00:14]} 8. Re1 {[%emt 0:00:33]} e6 {[%emt 0:00:12]} 9. Qe2 {[%emt 0:00:23]} Qc7 {[%emt 0:00:21]} 10. Nf1 {[%emt 0:00:13]} b6 {[%emt 0:00:21]} 11. e5 {[%emt 0:00:09]} Nd7 {[%emt 0:00:14]} 12. Bf4 {[%emt 0:00:01]} h6 {[%emt 0:00:04]} 13. h4 {[%emt 0:00:01]} Bb7 {[%emt 0:00:04]} 14. Ne3 {[%emt 0:01:49]} Ncxe5 {[%emt 0:00:41]} 15. Nxe5 {[%emt 0:00:03]} Nxe5 {[%emt 0:00:51]} 16. Nxd5 {[%emt 0:00:13]} exd5 {[%emt 0:00:55]} 17. Bxe5 {[%emt 0:00:02]} Qd7 {[%emt 0:00:12]} 18. Bxg7 {[%emt 0:00:37]} Kxg7 {[%emt 0:00:10]} 19. Qe7 {[%emt 0:00:42]} Rad8 {[%emt 0:00:13]} 20. Qe5+ {[%emt 0:00:25]} f6 {[%emt 0:00:37]} 21. Qe7+ {[%emt 0:00:49]} Rf7 {[%emt 0:00:01]} 22. Qxd7 {[%emt 0:00:10]} Rdxd7 {[%emt 0:00:08]} 23. Re6 {[%emt 0:01:06]} Rfe7 {[%emt 0:00:06]} 24. Rae1 {[%emt 0:00:01]} Rxe6 {[%emt 0:00:16]} 25. Rxe6 {[%emt 0:00:01]} Kf7 {[%emt 0:00:01]} 26. Re2 {[%emt 0:00:37]} Re7 {[%emt 0:00:09]} 27. Kf1 {[%emt 0:00:04]} Rxe2 {[%emt 0:01:13]} 28. Kxe2 {[%emt 0:00:01]} Ke6 {[%emt 0:00:02]} 29. c3 {[%emt 0:00:05]} g5 {[%emt 0:00:32]} 30. Ke3 {[%emt 0:00:41]} d4+ {[%emt 0:00:09]} 31. cxd4 {[%emt 0:00:13]} Bxg2 {[%emt 0:00:06]} 32. dxc5 {[%emt 0:00:23]} bxc5 {[%emt 0:00:02]} 33. d4 {[%emt 0:00:18]} gxh4 {[%emt 0:02:16]} 34. gxh4 {[%emt 0:00:01]} cxd4+ {[%emt 0:01:39]} 35. Kxd4 {[%emt 0:00:03]} Kf5 {[%emt 0:00:04]} 36. Ke3 {[%emt 0:00:06]} Kg4 {[%emt 0:00:08]} 37. b4 {[%emt 0:00:18]} Kxh4 {[%emt 0:00:21]} 38. Kf4 {[%emt 0:00:07]} Bc6 {[%emt 0:00:30]} 39. Kf5 {[%emt 0:00:10]} h5 {[%emt 0:00:08]} 40. Kxf6 {[%emt 0:00:01]} Kg4 {[%emt 0:00:02]} 41. Ke5 {[%emt 0:00:06]} Kf3 {[%emt 0:00:09]} 42. Kf5 {[%emt 0:00:07]} h4 {[%emt 0:00:05]} 43. Ke6 {[%emt 0:00:10]} h3 {[%emt 0:00:03]} 44. Kd6 {[%emt 0:00:02]} Bb5 {[%emt 0:00:07]} 45. Kc5 {[%emt 0:00:02]} a6 {[%emt 0:00:01]} 46. Kb6 {[%emt 0:00:03]} h2 {[%emt 0:00:02]} 47. a4 {[%emt 0:00:01]} Bxa4 {[%emt 0:00:02]} 48. Kxa6 {[%emt 0:00:02]} h1=Q {[%emt 0:00:10]} 0-1

[Event "Kupreichik Memorial Open 2018"]
[Site "Minsk"]
[Date "2018.06.23"]
[Round "11"]
[White "Ilyuchyk, Yana"]
[Black "Osmolny, Vladimir I"]
[Result "1-0"]
[ECO "B91"]
[WhiteElo "1971"]
[BlackElo "2211"]
[Annotator "NA"]
[PlyCount "71"]
[EventDate "2018.06.21"]
[EventCountry "BLR"]
[SourceTitle "playchess.com"]
[Source "ChessBase"]
[SourceQuality "1"]
[TimeControl "900+10"]

1. e4 {[%emt 0:00:00]} c5 {[%emt 0:00:01]} 2. Nf3 {[%emt 0:00:00]} Nf6 {[%emt 0:00:02]} 3. Nc3 {[%emt 0:00:06]} d6 {[%emt 0:00:09]} 4. d4 {[%emt 0:00:05]} cxd4 {[%emt 0:00:01]} 5. Nxd4 {[%emt 0:00:02]} a6 {[%emt 0:00:02]} 6. g3 {[%emt 0:00:03]} e5 {[%emt 0:00:10]} 7. Nde2 {[%emt 0:00:02]} Be6 {[%emt 0:00:13]} 8. Bg2 {[%emt 0:00:04]} Nbd7 {[%emt 0:00:12]} 9. O-O {[%emt 0:00:22]} b5 {[%emt 0:00:47]} 10. a4 {[%emt 0:00:31]} b4 {[%emt 0:00:07]} 11. Nd5 {[%emt 0:00:03]} Bxd5 {[%emt 0:00:16]} 12. exd5 {[%emt 0:00:02]} Be7 {[%emt 0:00:18]} 13. a5 {[%emt 0:00:12]} Nc5 {[%emt 0:00:29]} 14. Be3 {[%emt 0:01:46]} Nfd7 {[%emt 0:00:08]} 15. f4 {[%emt 0:01:09]} Rb8 {[%emt 0:03:31]} 16. fxe5 {[%emt 0:00:51]} dxe5 {[%emt 0:00:02]} 17. d6 {[%emt 0:00:46]} Bf6 {[%emt 0:00:42]} 18. Bc6 {[%emt 0:03:53]} O-O {[%emt 0:03:17]} 19. Qd5 {[%emt 0:00:04]} Ne6 {[%emt 0:00:43]} 20. Ba7 {[%emt 0:00:34]} Rc8 {[%emt 0:00:15]} 21. c3 {[%emt 0:00:09]} bxc3 {[%emt 0:00:48]} 22. bxc3 {[%emt 0:00:13]} e4 {[%emt 0:03:37]} 23. Bb7 {[%emt 0:01:28]} Rc5 {[%emt 0:01:15]} 24. Bxc5 Ndxc5 {[%emt 0:00:37]} 25. Bc6 {[%emt 0:00:35]} Bg5 {[%emt 0:00:28]} 26. Kg2 {[%emt 0:00:57]} Be3 {[%emt 0:00:22]} 27. Nd4 {[%emt 0:00:50]} h5 {[%emt 0:00:41]} 28. Rae1 {[%emt 0:01:11]} Bh6 {[%emt 0:00:21]} 29. Nxe6 {[%emt 0:00:13]} Nxe6 {[%emt 0:00:01]} 30. Rxe4 {[%emt 0:00:10]} Ng5 {[%emt 0:00:05]} 31. Ref4 {[%emt 0:00:23]} Kh8 {[%emt 0:00:19]} 32. h4 {[%emt 0:00:08]} Nh7 {[%emt 0:00:08]} 33. Rxf7 {[%emt 0:00:09]} Rxf7 {[%emt 0:00:12]} 34. Qxf7 {[%emt 0:00:19]} Nf6 {[%emt 0:00:03]} 35. d7 {[%emt 0:00:47]} Qb8 {[%emt 0:00:25]} 36. Rxf6 {[%emt 0:00:13]} 1-0